Cogmind - Beta 15 @@@ ROGUE MODE // 2025.08.19 @ 00:32:46 Player: Deou Result: Destroyed by G-34 Mercenary with Small Laser Performance ------------- Evolutions (1) 500 Regions Visited (2) 400 Robots Destroyed (13) 65 Value Destroyed (475) 475 Prototype IDs (0) 0 Alien Tech Used (0) 0 Bonus (0) 0 TOTAL SCORE: 1440 Bonus ------- None Cogmind --------- Core Integrity 0/400 Matter 300/300 Energy 62/100 System Corruption 0% Temperature Cool (18) Movement Core (1350) Ox26 Location -9/Materials Parts ------- > --- POWER (2) -------- (None) > --- PROPULSION (2) --- (None) > --- UTILITY (3) ------ Huge Storage Unit > --- WEAPON (2) ------- (None) > --- INVENTORY (25) --- Light Treads Light Treads Recoil Stabilizer Actuator Array Hardlight Generator Peak State ------------ > --- POWER ------------ Ion Engine Light Nuclear Core > --- PROPULSION ------- Aluminum Leg Aluminum Leg > --- UTILITY ---------- Huge Storage Unit Sensor Array ECM Suite > --- WEAPON ----------- Assault Rifle Heavy Assault Rifle > --- INVENTORY -------- Light Ion Engine Flight Unit Sensor Array Recoil Stabilizer Recoil Stabilizer Actuator Array Actuator Array Actuator Array Hardlight Generator [Rating: 14] Favorites ----------- Power Ion Engine Engine Ion Engine Power Core Light Nuclear Core Propulsion Aluminum Leg Treads Light Treads Leg Aluminum Leg Utility ECM Suite Device ECM Suite Storage Huge Storage Unit Weapon Heavy Assault Rifle Energy Gun Beam Rifle Ballistic Gun Heavy Assault Rifle Build | -11 -10 -9 ------- Run | Yrd Mat Mat Slots Evolved 2 | . . 2 Power 1 | . . 1 Propulsion . | . . . Utility 1 | . . 1 Weapon . | . . . Parts Attached 21 | 6 2 13 Power 3 | 1 1 1 Engine 2 | 1 . 1 Core 1 | . 1 . Reactor . | . . . Propulsion 6 | 2 . 4 Treads 2 | . . 2 Leg 4 | 2 . 2 Wheel . | . . . Hover . | . . . Flight . | . . . Utility 7 | 1 1 5 Device 5 | . 1 4 Storage 2 | 1 . 1 Processor . | . . . Hackware . | . . . Protection . | . . . Artifact . | . . . Weapon 5 | 2 . 3 Energy Gun 1 | . . 1 Energy Cannon . | . . . Ballistic Gun 4 | 2 . 2 Ballistic Cannon . | . . . Launcher . | . . . Special Weapon . | . . . Impact Weapon . | . . . Slashing Weapon . | . . . Piercing Weapon . | . . . Special Melee Weapon . | . . . Unidentified Prototypes . | . . . Parts Lost 12 | . . 12 Power 3 | . . 3 Propulsion 3 | . . 3 Utility 3 | . . 3 Weapon 3 | . . 3 Highest Loss Streak 7 | . . 7 To Critical Strikes . | . . . Average Backups 4 | . 1 5 Power . | . . . Propulsion . | . . . Utility 3 | . . 4 Weapon . | . . . Tool/Special . | . . . Unused Backups 8 | 2 . 6 Power 1 | 1 . . Propulsion 2 | 1 . 1 Utility 4 | . . 4 Weapon 1 | . . 1 Tool/Special . | . . . Average Slot Usage (%) 93 | . 97 92 Engine 11 | . 4 12 Core 7 | . 9 7 Treads 5 | . . 6 Leg 16 | . 28 13 Device 19 | . 11 20 Storage 11 | . 14 11 Energy Gun 2 | . . 3 Ballistic Gun 18 | . 28 16 Peak Build Rating 14 | 6 9 14 Average Rating 11 | 4 8 11 On Entrance 5 | . 6 9 Naked Turns . | . . . Heaviest Build 98 | 13 15 98 Greatest Support 40 | 20 20 40 Greatest Overweight (x) 27 | . . 27 Average Overweight (x) 1 | . . 2 Largest Inventory Capacity 25 | 8 8 25 Average Capacity 19 | 7 8 22 Most Carried 10 | 5 4 10 Average Carried 4 | . 1 5 Final Capacity 25 | 8 8 25 Final Carried 5 | . 4 5 Class Distribution -------------------- 74% | Mutant 25% | Scavenger-Mutant Dominant Class ---------------- Mutant | -10/Materials Mutant | -9/Materials Resources | -11 -10 -9 ----------- Run | Yrd Mat Mat Matter Collected 570 | 260 30 280 Remotely . | . . . Salvage Created 584 | . 88 496 Parts 42 | . 5 37 Haulers Intercepted . | . . . Recyclers Shooed . | . . . Parts Field Recycled . | . . . Retrieved Matter . | . . . Parts Self-Destructed . | . . . Prevented . | . . . Kills | -11 -10 -9 ------- Run | Yrd Mat Mat Combat Hostiles Destroyed 13 | . 2 11 Guns 13 | . 2 11 Classes Destroyed 3 | . 1 2 Swarmer 2 | . . 2 Grunt 6 | . 2 4 Sentry 5 | . . 5 Best Kill Streak 3 | . 2 3 Combat Bots Only 3 | . 2 3 Max Kills in Single Turn 1 | . 1 1 Gunslinging . | . . . Exploded . | . . . Melee . | . . . Uniques/NPCs Destroyed . | . . . Combat | -11 -10 -9 -------- Run | Yrd Mat Mat Hostile Shots Fired 198 | . 9 189 Missed 57 | . 1 56 Hits 141 | . 8 133 Projectile 141 | . 8 133 Critical Strikes 3 | . 1 2 Damage Taken 1738 | . 102 1636 Core 450 | . 42 408 Absorbed by Shields . | . . . Regen/Repaired (Parts) 54 | . . 54 Core Remaining (%) 91 | 100 83 . Volleys Fired 45 | . 5 40 Largest 2 | . 2 2 Hottest 79 | . 40 79 Shots Fired 78 | . 10 68 Gun 78 | . 10 68 Cannon . | . . . Launcher . | . . . Special . | . . . Kinetic 66 | . 10 56 Thermal 12 | . . 12 Explosive . | . . . Electromagnetic . | . . . Robot Hit Streak 14 | . 3 14 Robot Miss Streak 3 | . 2 3 Penetration Max . | . . . Secondary Targets 3 | . 1 2 Max Gunslinging Chain 1 | . 1 1 Shots Hit Robots 59 | . 5 54 Core Hits 24 | . 5 19 Critical Kills . | . . . Critical Parts Destroyed . | . . . Critical Strikes . | . . . Melee Attacks . | . . . Impact . | . . . Slashing . | . . . Piercing . | . . . Sneak Attacks . | . . . Combat Hostiles . | . . . Follow-up Attacks . | . . . Damage Inflicted 759 | . 50 709 Guns 759 | . 50 709 Cannons . | . . . Explosions . | . . . Melee . | . . . Ramming . | . . . Kinetic 613 | . 50 563 Thermal 146 | . . 146 Explosive . | . . . Electromagnetic . | . . . Impact . | . . . Slashing . | . . . Piercing . | . . . Highest Corruption . | . . . Average Corruption . | . . . Corruption Purged . | . . . Corruption Blocked . | . . . Overload Shots . | . . . Overflow Damage . | . . . Projectiles . | . . . Explosions . | . . . Melee . | . . . Knockbacks . | . . . Impact . | . . . Kinetic . | . . . Secondary . | . . . Self-Inflicted Damage . | . . . Shots . | . . . Rammed . | . . . Targets Rammed . | . . . Kicked . | . . . Crushed . | . . . Highest Temperature 104 | . 33 104 Average Temperature 26 | . 18 27 Received Heat Transfer 759 | . 78 681 Siege Activations . | . . . Martial Activations . | . . . Shielding Activations . | . . . Robots Disrupted . | . . . Combat Hostiles . | . . . Robots Corrupted . | . . . Combat Hostiles . | . . . Parts Fried . | . . . Impact Corruptions . | . . . Robots Melted . | . . . Combat Hostiles . | . . . Parts Melted . | . . . Heat Transferred 370 | . . 370 Parts Sabotaged . | . . . Parts Stolen . | . . . Parts Stripped . | . . . Power Chain Reactions . | . . . Alert | -11 -10 -9 ------- Run | Yrd Mat Mat Maximum Alert Level . | . . . Low Security (%) 100 | 100 100 100 Level 1 . | . . . Level 2 . | . . . Level 3 . | . . . Level 4 . | . . . Level 5 . | . . . High Security . | . . . Max Security . | . . . Peak Influence 60 | . 50 60 Initial . | . . . Average 10 | . 10 10 Influence Increases 351 | . 57 294 Destroy 0b10 Robot/C 260 | . 40 220 Destroy Leader 80 | . 10 70 Successful Hack 10 | . 7 3 Destroy Structure 1 | . . 1 Influence Decreases 343 | . 57 286 Time Decay 283 | . 57 226 Lost Part 60 | . . 60 Squads Dispatched 3 | . 1 2 Investigation 2 | . . 2 Extermination . | . . . Reinforcement 1 | . 1 . Assault . | . . . Garrison . | . . . Intercept . | . . . Searches Triggered . | . . . Construction Impeded . | . . . Haulers Reinforced . | . . . Active Scanning Responses . | . . . Cargo Convoy Interrupts . | . . . Stealth | -11 -10 -9 --------- Run | Yrd Mat Mat Distress Signals . | . . . Communications Jammed . | . . . Distress Signals . | . . . Times Spotted 28 | . 6 22 Peak Tracking Total 4 | . 2 4 Tactical Retreats 2 | . . 2 Traps | -11 -10 -9 ------- Run | Yrd Mat Mat Traps Triggered 2 | . . 2 Indirectly . | . . . Trap Hack Attempts . | . . . Triggered . | . . . Disarmed . | . . . Reprogrammed . | . . . Reused . | . . . Traps Extracted . | . . . Installed . | . . . Triggered . | . . . Machines | -11 -10 -9 ---------- Run | Yrd Mat Mat Machines Disabled . | . . . Max in Single Turn . | . . . Machines Repaired . | . . . Machines Dismantled . | . . . Machines Sabotaged . | . . . Overloaded Fab Kills . | . . . Hacking | -11 -10 -9 --------- Run | Yrd Mat Mat Machines Accessed 5 | . 1 4 Terminals 2 | . 1 1 Fabricators . | . . . Repair Stations 1 | . . 1 Recycling Units 1 | . . 1 Scanalyzers 1 | . . 1 Garrison Access . | . . . Total Hacks 7 | . 1 6 Successful 4 | . 1 3 Failed 3 | . . 3 Catastrophic . | . . . Database Lockouts . | . . . Manual . | . . . Terminals 2 | . 1 1 Fabricators . | . . . Repair Stations 3 | . . 3 Recycling Units 1 | . . 1 Scanalyzers 1 | . . 1 Garrison Access . | . . . Terminal Hacks 1 | . 1 . Patrol Status 1 | . 1 . Fabricator Hacks . | . . . Repair Station Hacks 2 | . . 2 Scan Component 1 | . . 1 Repair 1 | . . 1 Recycling Unit Hacks 1 | . . 1 Retrieve Components 1 | . . 1 Scanalyzer . | . . . Garrison Access Hacks . | . . . Unauthorized Hacks . | . . . Terminals . | . . . Fabricators . | . . . Repair Stations . | . . . Recycling Units . | . . . Scanalyzers . | . . . Garrison Access . | . . . Data Cores Recovered . | . . . Used . | . . . Hacking Detections 2 | . . 2 Full Trace Events . | . . . Feedback Events . | . . . Feedback Blocked . | . . . Robot Schematics Acquired . | . . . Robots Built . | . . . Authchips . | . . . Time . | . . . Total Robot Build Rating . | . . . Part Schematics Acquired . | . . . Parts Built . | . . . Authchips . | . . . Time . | . . . Total Part Build Rating . | . . . Parts Repaired 1 | . . 1 Time 26 | . . 26 Parts Recycled . | . . . Recycled Matter . | . . . Retrieved Matter . | . . . Retrieved Components 9 | . . 9 Parts Scanalyzed . | . . . Part Schematics Acquired . | . . . Parts Damaged . | . . . Bothacking | -11 -10 -9 ------------ Run | Yrd Mat Mat Used RIF Installer . | . . . Robots Hacked . | . . . Non-combat . | . . . Combat . | . . . Robot Hacks Applied . | . . . Relay Couplers Released . | . . . Fabnet Peak Effective % . | . . . Robots Rewired . | . . . Allies Hacked . | . . . Hacks Repelled . | . . . Allies | -11 -10 -9 -------- Run | Yrd Mat Mat Total Allies . | . . . Largest Group . | . . . Highest-Rated Group . | . . . Highest-Rated Ally . | . . . Total Orders . | . . . Ally Attacks . | . . . Total Damage . | . . . Kills . | . . . Allies Corrupted . | . . . Allies Melted . | . . . Intel | -11 -10 -9 ------- Run | Yrd Mat Mat Active Infowar (turns) 1578 | . 233 1345 Sensors 1127 | . . 1127 ECM 1578 | . 233 1345 Robot Analysis Total . | . . . Derelict Logs Recovered . | . . . Drone Launches . | . . . Drone Recoveries . | . . . Exploration | -11 -10 -9 ------------- Run | Yrd Mat Mat Turns Passed 1696 | 70 279 1347 Spaces Moved 614 | 59 210 345 Core 23 | 20 . 3 Treads 109 | . . 109 Legs 482 | 39 210 233 Wheels . | . . . Hover . | . . . Flight . | . . . Fastest Speed 50 | 50 120 120 Average Speed 240 | 96 120 339 Slowest Speed 1400 | 120 120 1400 Overloaded Moves . | . . . Propulsion Burnouts . | . . . Robots Hopped . | . . . Potential Cave-ins . | . . . Cave-ins Triggered . | . . . Exploration Rate (%) 20 | 4 32 26 Regions Visited 2 Branch Regions . Pre-discovered Areas . | . . . Known Exits Taken . | . . . Unknown Exits Taken 2 | 1 1 . Scrap Searched . | . . . Spaces Dug . | . . . Terrain Destroyed . | . . . Melee . | . . . Projectile . | . . . AOE . | . . . Terrain Rammed . | . . . Walls Destroyed . | . . . Machines Disabled . | . . . Actions | -11 -10 -9 --------- Run | Yrd Mat Mat Total 767 | 74 227 466 Wait 41 | . 6 35 Move 612 | 58 209 345 Hop . | . . . Pick Up 31 | 8 5 18 Fast Attach . | . . . Attach 19 | 6 1 12 Detach 2 | . . 2 Swap 5 | . 1 4 Drop 12 | 2 . 10 Fire 45 | . 5 40 Melee . | . . . Ram . | . . . Kick . | . . . Crush . | . . . Escape Stasis . | . . . Rewire . | . . . Trap . | . . . Miscellaneous . | . . . Route ------- -11/Scrapyard -10/Materials -9/Materials History --------- Turn | Location | Event 5 | -11/Scrapyard | Discovered new exit (range 15) 71 | -11/Scrapyard | Entered Materials 284 | -10/Materials | Discovered new exit (range 13) 318 | -10/Materials | Build established: Mutant 350 | -10/Materials | Entered another Materials area 350 | -9/Materials | Evolved 2 slots: Power x1, Utility x1 1303 | -9/Materials | Lost 3 parts (1p1u1w) 1354 | -9/Materials | Repaired Ion Engine 1617 | -9/Materials | Build established: Scavenger-Mutant 1666 | -9/Materials | Core integrity fell below 50% 1687 | -9/Materials | Core integrity fell below 20% 1692 | -9/Materials | Lost 7 parts (2p2n1u2w) 1697 | -9/Materials | Destroyed by G-34 Mercenary with Small Laser Last Messages --------------- 01639_ U-05 Engineer lays Concrete. 01641_ R-06 Scavenger collects Ion Engine. 01642_ U-05 Engineer lays Concrete. 01644_ Ion Engine destroyed. 01644_ Aluminum Leg destroyed. 01644_ U-05 Engineer lays Concrete. 01645_ G-47 Trooper destroyed. 01645_ Switching to secondary target: Y-45 Defender. 01645_ U-05 Engineer lays Concrete. 01647_ Lgt. Ion Engine destroyed. 01648_ G-34 Mercenary destroyed. 01648_ Switching to secondary target: Y-45 Defender. 01650_ Sensor Array destroyed. 01653_ Aluminum Leg destroyed. 01656_ R-06 Scavenger collects Aluminum Leg. 01656_ Hvy. Assault Rifle destroyed. 01658_ Y-45 Defender destroyed. 01661_ Beam Rifle destroyed. 01665_ K-01 Serf collects debris. 01695_ ECM Suite destroyed. Map ----- +----------------------------------------------------+ | """ #???????????????????????????????????? | | """ #???##########??????????????????????? | | "" #???# """ #??????????????????????? | | #???# "R" #??????????????????????? | | +######### " " #??????????????????????? | | # #??????????????????????? | | + #??????????????????????? | | # """ ##?????????????????????? | | """" # """ #?????????????????????? | | """" # """ ##?????????????????????? | | """" # #??????????????????????? | | ###################### #??????? | | * #??????? | | #??????? | | #??????? | | +###########+####### ######## #??????? | | ?????????? ?????# #?????????????????? | | ?????????? ?????# #?????????????????? | | ?????????# ????# #?????????????????? | | ?????????# ????# #?????????????????? | | ?????????# ! ???# #?????????????????? | | ??????????# ???# #?????????????????? | | ??????????# ??# #??????????#??????? | | ??????????# ??# ####+### #??????? | | ??????????# ?# kgg ! #??????? | | ??????????########?#%= @ %[ +??????? | | ???????????? a%!= ! #??????? | | ???????????############# ###### #??????? | | ???????????????????????# #?????????????? | | ???????????????????????# g #?????????????? | | ???????????????????????+ #?????????????? | | ???????????????????????# #?????????????? | | ???????????????????????# #?????????????? | | ???????????????????????# #?????????????? | | ???????????????????????# #?????????????? | | ???????????????????????# #?????????????? | | ???????????????????????# #?????????????? | | ???????????????????????# u?????????????? | | ???????????????????????? #?????????????? | | ???????????????????????? #?????????????? | | ???????????????????????? ??????????????? | | ?????????????????????????????????????????? | | ?????????????????????????????????????????? | | ?????????????????????????????????????????? | | ?????????????????????????????????????????? | | ?????????????????????????????????????????? | | ?????????????????????????????????????????? | | ?????????????????????????????????????????? | | ?????????????????????????????????????????? | | ?????????????????????????????????????????? | +----------------------------------------------------+ Best States ------------- Heat Dissipation 28 Energy Generation 19 Energy Capacity 310 Matter Stores 300 Matter Capacity 300 Sight Range 16 Robot Scan Range 14 Terrain Scan Density 10 ECM Strength 1 Evasion (%) 55 Recoil Reduction 6 Item Schematics ----------------- None Robot Schematics ------------------ None Fabricated ------------ Nothing Repaired ---------- Ion Engine | 10% | -9/Materials Alien Tech Used ----------------- None Achievements -------------- Part-time Mechanic Challenges ------------ None Game ------ Seed BottomlessEfficiencyGravjet Manual? 0 Play Time 00:13:04 Cumulative 3.2 hours Start 2025.08.19 @ 00:22:44 End 2025.08.19 @ 00:32:46 Sessions 1 Manual Loads 0 Difficulty Rogue Special Mode None Game No. 8 Rogue 8 Adventurer 0 Explorer 0 Win Type - Total 0 Types 0/0/0/0/0/0/0/0/0/0 Lore% 3 Gallery% 6 Achievement% 8 Wizard Run 0 Options --------- Layout 0 ASCII 0 Keyboard 0 Movement Arrows Keybinds 0 Fullscreen 2 Font 24/Terminus Map View 76x50 Zoom Use 27% Tactical HUD 1 Map Filters NONE Filters NONE Steam 1 RUN: 6e2ad5ab-afa8-4cce-8dc0-586a01fcf973